[Event "44th Badalona Open 2018"]
[Site "Badalona"]
[Date "2018.08.03"]
[Round "3"]
[White "Panelo, Marcelo"]
[Black "Fernandez, Maria Florencia"]
[Result "1-0"]
[ECO "A05"]
[WhiteElo "2360"]
[BlackElo "2215"]
[Annotator "NA"]
[PlyCount "75"]
[EventDate "2018.08.01"]
[EventType "swiss"]
[EventCountry "ESP"]
[SourceTitle "playchess.com"]
[Source "ChessBase"]
[SourceQuality "1"]
[TimeControl "5400+30"]

1. Nf3 {[%emt 0:02:34]} Nf6 2. b3 {[%emt 0:00:32]} g6 {[%emt 0:00:49]} 3. Bb2 {[%emt 0:00:13]} Bg7 {[%emt 0:00:06]} 4. g3 {[%emt 0:00:05]} O-O {[%emt 0:00:37]} 5. Bg2 {[%emt 0:00:07]} c5 6. c4 {[%emt 0:01:42]} Nc6 {[%emt 0:07:28]} 7. O-O {[%emt 0:00:17]} d6 8. d4 {[%emt 0:09:39]} cxd4 {[%emt 0:07:52]} 9. Nxd4 {[%emt 0:00:44]} Nxd4 10. Qxd4 Nh5 {[%emt 0:06:34]} 11. Qd2 {[%emt 0:00:40]} Bxb2 {[%emt 0:00:32]} 12. Qxb2 {[%emt 0:00:06]} Rb8 {[%emt 0:00:50]} 13. Nc3 {[%emt 0:05:44]} Be6 {[%emt 0:02:11]} 14. Rfd1 {[%emt 0:10:25]} Qb6 {[%emt 0:08:05]} 15. Rd2 {[%emt 0:07:15]} Nf6 {[%emt 0:08:35]} 16. e4 {[%emt 0:08:12]} Qa5 {[%emt 0:21:27]} 17. Re1 Qh5 18. Nd5 {[%emt 0:09:10]} Bxd5 {[%emt 0:01:20]} 19. exd5 {[%emt 0:16:15]} Rfe8 {[%emt 0:08:03]} 20. Rde2 b5 21. Rxe7 {[%emt 0:15:05]} Rxe7 {[%emt 0:00:53]} 22. Rxe7 Ng4 23. h3 {[%emt 0:01:35]} Ne5 {[%emt 0:03:20]} 24. c5 {[%emt 0:01:16]} Nf3+ {[%emt 0:13:55]} 25. Kh1 {[%emt 0:05:54]} Ng5 {[%emt 0:05:54]} 26. Qf6 {[%emt 0:00:18]} dxc5 {[%emt 0:01:19]} 27. f4 {[%emt 0:00:45]} Rf8 {[%emt 0:01:20]} 28. fxg5 {[%emt 0:00:32]} Qd1+ {[%emt 0:00:09]} 29. Qf1 {[%emt 0:01:15]} Qd2 {[%emt 0:00:04]} 30. Rxa7 {[%emt 0:02:13]} Qxg5 {[%emt 0:00:06]} 31. Kh2 {[%emt 0:00:07]} h5 {[%emt 0:00:58]} 32. h4 Qe3 33. Qf4 {[%emt 0:01:22]} Qe2 {[%emt 0:00:59]} 34. d6 c4 {[%emt 0:00:18]} 35. bxc4 {[%emt 0:00:41]} bxc4 {[%emt 0:00:03]} 36. Rc7 {[%emt 0:00:26]} Qxa2 37. Qxc4 {[%emt 0:00:20]} Qd2 {[%emt 0:01:16]} 38. Qd5 {[%emt 0:00:22]} 1-0

[Event "44th Badalona Open 2018"]
[Site "Badalona"]
[Date "2018.08.03"]
[Round "3"]
[White "Abhishek, Das"]
[Black "Aguero Jimenez, Luis Lazaro"]
[Result "1/2-1/2"]
[ECO "B22"]
[WhiteElo "2314"]
[BlackElo "2482"]
[Annotator "ChessBase"]
[PlyCount "69"]
[EventDate "2018.08.01"]
[EventType "swiss"]
[EventCountry "ESP"]
[SourceTitle "playchess.com"]
[Source "ChessBase"]
[SourceQuality "1"]
[TimeControl "5400+30"]

1. e4 {[%emt 0:00:00]} c5 2. c3 {[%emt 0:00:21]} Nf6 {[%emt 0:00:00]} 3. e5 {[%emt 0:00:05]} Nd5 {[%emt 0:00:00]} 4. d4 {[%emt 0:00:06]} cxd4 5. Nf3 {[%emt 0:00:41]} e6 {[%emt 0:00:00]} 6. cxd4 {[%emt 0:00:11]} d6 {[%emt 0:09:22]} 7. Bc4 Be7 {[%emt 0:00:03]} 8. O-O {[%emt 0:00:59]} O-O {[%emt 0:02:01]} 9. Qe2 {[%emt 0:02:30]} Nc6 10. Nc3 dxe5 {[%emt 0:13:37]} 11. dxe5 {[%emt 0:00:43]} Nxc3 {[%emt 0:00:33]} 12. bxc3 b6 {[%emt 0:00:28]} 13. Qe4 {[%emt 0:09:29]} Bb7 14. Bd3 {[%emt 0:00:59]} g6 {[%emt 0:00:36]} 15. Bh6 Re8 16. Rad1 {[%emt 0:05:04]} Qc7 {[%emt 0:02:47]} 17. Qf4 {[%emt 0:01:58]} Red8 {[%emt 0:09:13]} 18. Rfe1 {[%emt 0:01:44]} Rd5 {[%emt 0:00:57]} 19. c4 {[%emt 0:10:50]} Rc5 20. h4 {[%emt 0:02:50]} Nb4 {[%emt 0:09:21]} 21. Ng5 {[%emt 0:16:21]} Bf8 22. Bxf8 Nxd3 {[%emt 0:02:00]} 23. Rxd3 {[%emt 0:01:22]} Rxf8 24. Qf6 {[%emt 0:05:57]} Rxc4 {[%emt 0:01:10]} 25. h5 h6 {[%emt 0:16:55]} 26. hxg6 {[%emt 0:08:40]} hxg5 27. Qxg5 {[%emt 0:06:44]} f6 {[%emt 0:06:04]} 28. exf6 Qf4 29. f7+ {[%emt 0:11:02]} Kg7 {[%emt 0:04:20]} 30. Qe7 {[%emt 0:00:03]} Rc1 31. Rxc1 {[%emt 0:11:03]} Qxc1+ {[%emt 0:08:16]} 32. Kh2 {[%emt 0:00:08]} Qf4+ {[%emt 0:00:05]} 33. Kg1 Qc1+ {[%emt 0:15:03]} 34. Kh2 {[%emt 0:00:16]} Qf4+ {[%emt 0:01:03]} 35. Kg1 {[%emt 0:00:08]} 1/2-1/2

[Event "44th Badalona Open 2018"]
[Site "Badalona"]
[Date "2018.08.03"]
[Round "3"]
[White "Harikrishnan, A Ra"]
[Black "Diaz Camallonga, Carles"]
[Result "1/2-1/2"]
[ECO "A14"]
[WhiteElo "2301"]
[BlackElo "2445"]
[Annotator "NA"]
[PlyCount "96"]
[EventDate "2018.08.01"]
[EventType "swiss"]
[EventCountry "ESP"]
[SourceTitle "playchess.com"]
[Source "ChessBase"]
[SourceQuality "1"]
[TimeControl "5400+30"]

1. Nf3 {[%emt 0:00:00]} Nf6 {[%emt 0:00:03]} 2. c4 {[%emt 0:00:00]} e6 {[%emt 0:00:16]} 3. g3 {[%emt 0:00:00]} d5 {[%emt 0:00:24]} 4. Bg2 {[%emt 0:00:00]} Be7 {[%emt 0:01:08]} 5. O-O {[%emt 0:00:14]} O-O 6. d4 {[%emt 0:01:48]} dxc4 {[%emt 0:01:07]} 7. Qc2 c6 8. Qxc4 {[%emt 0:05:38]} b5 {[%emt 0:01:16]} 9. Qc2 {[%emt 0:00:37]} Bb7 {[%emt 0:02:23]} 10. Nc3 {[%emt 0:06:11]} Nbd7 11. Bg5 h6 {[%emt 0:12:42]} 12. Bxf6 {[%emt 0:19:38]} Nxf6 13. Ne4 Nxe4 {[%emt 0:09:55]} 14. Qxe4 {[%emt 0:07:40]} Rb8 {[%emt 0:00:46]} 15. Qc2 {[%emt 0:13:31]} Qb6 16. e3 c5 {[%emt 0:03:12]} 17. dxc5 {[%emt 0:04:58]} Bxc5 {[%emt 0:00:06]} 18. Rfc1 {[%emt 0:01:06]} Rbc8 {[%emt 0:01:50]} 19. Qe2 Be7 20. Ne5 {[%emt 0:08:37]} Bxg2 {[%emt 0:06:11]} 21. Kxg2 {[%emt 0:02:19]} Bf6 {[%emt 0:01:28]} 22. Ng4 Qb7+ {[%emt 0:01:16]} 23. f3 {[%emt 0:01:41]} Be7 {[%emt 0:01:10]} 24. Nf2 {[%emt 0:06:18]} Rfd8 {[%emt 0:06:09]} 25. Rd1 Rd5 {[%emt 0:01:55]} 26. Rac1 {[%emt 0:04:17]} Rdc5 {[%emt 0:05:06]} 27. Nd3 Rc4 {[%emt 0:01:08]} 28. b3 {[%emt 0:04:21]} Rc3 {[%emt 0:00:06]} 29. Rxc3 {[%emt 0:01:36]} Rxc3 {[%emt 0:00:30]} 30. Rc1 {[%emt 0:04:32]} Qc7 31. Qb2 b4 {[%emt 0:02:12]} 32. Rxc3 {[%emt 0:01:46]} bxc3 {[%emt 0:00:05]} 33. Qc2 {[%emt 0:00:50]} a5 {[%emt 0:01:28]} 34. Nf2 {[%emt 0:04:27]} f5 {[%emt 0:03:32]} 35. Kf1 {[%emt 0:01:05]} Qc5 {[%emt 0:01:10]} 36. Ke2 {[%emt 0:01:47]} Bf6 37. Nd1 {[%emt 0:00:25]} h5 {[%emt 0:07:03]} 38. Nf2 {[%emt 0:01:01]} Qc7 39. Nd3 {[%emt 0:00:46]} h4 {[%emt 0:05:05]} 40. Kf2 {[%emt 0:00:54]} Qd6 41. Nf4 hxg3+ {[%emt 0:05:07]} 42. hxg3 {[%emt 0:00:37]} Be5 {[%emt 0:03:42]} 43. Ke2 {[%emt 0:01:17]} Kf7 {[%emt 0:07:37]} 44. Qd3 {[%emt 0:00:19]} Qc6 {[%emt 0:00:32]} 45. Qc4 {[%emt 0:01:16]} Qb6 46. Qd3 Qc6 {[%emt 0:06:46]} 47. Qc4 {[%emt 0:00:35]} Qd6 {[%emt 0:00:13]} 48. Qd3 Qc6 1/2-1/2

[Event "44th Badalona Open 2018"]
[Site "Badalona"]
[Date "2018.08.03"]
[Round "3"]
[White "Escandell, Juan C"]
[Black "Perez Mitjans, Orelvis"]
[Result "0-1"]
[ECO "C88"]
[WhiteElo "2227"]
[BlackElo "2402"]
[Annotator "NA"]
[PlyCount "88"]
[EventDate "2018.08.01"]
[EventType "swiss"]
[EventCountry "ESP"]
[SourceTitle "playchess.com"]
[Source "ChessBase"]
[SourceQuality "1"]
[TimeControl "5400+30"]

1. e4 {[%emt 0:00:00]} e5 {[%emt 0:19:38]} 2. Nf3 {[%emt 0:00:00]} Nc6 {[%emt 0:00:06]} 3. Bb5 {[%emt 0:00:00]} a6 {[%emt 0:00:06]} 4. Ba4 {[%emt 0:00:07]} Nf6 {[%emt 0:00:12]} 5. O-O {[%emt 0:00:12]} Be7 {[%emt 0:00:17]} 6. Re1 {[%emt 0:00:27]} b5 {[%emt 0:00:14]} 7. Bb3 {[%emt 0:00:03]} O-O {[%emt 0:00:12]} 8. a4 {[%emt 0:01:30]} b4 {[%emt 0:00:37]} 9. d4 d6 {[%emt 0:02:48]} 10. dxe5 {[%emt 0:05:47]} dxe5 {[%emt 0:00:00]} 11. Qxd8 {[%emt 0:12:32]} Rxd8 {[%emt 0:18:36]} 12. Nbd2 Bc5 {[%emt 0:05:45]} 13. h3 {[%emt 0:08:03]} Bb7 14. Ng5 {[%emt 0:17:38]} Rd7 {[%emt 0:16:03]} 15. Nc4 h6 {[%emt 0:05:15]} 16. Nf3 {[%emt 0:01:07]} Re8 {[%emt 0:00:35]} 17. a5 {[%emt 0:03:29]} Rdd8 18. Ba4 Re6 {[%emt 0:05:45]} 19. c3 {[%emt 0:18:59]} bxc3 {[%emt 0:03:20]} 20. bxc3 {[%emt 0:00:02]} Ne7 21. Bc2 {[%emt 0:15:34]} Ng6 {[%emt 0:00:58]} 22. Be3 {[%emt 0:01:55]} Bf8 {[%emt 0:04:37]} 23. Bc1 {[%emt 0:05:42]} Bc6 24. g3 Nd7 {[%emt 0:04:54]} 25. Rd1 {[%emt 0:02:51]} Rde8 {[%emt 0:01:53]} 26. Ne3 {[%emt 0:01:24]} Nc5 {[%emt 0:01:23]} 27. Nd5 {[%emt 0:00:39]} Rc8 {[%emt 0:02:14]} 28. Be3 Bb5 {[%emt 0:01:27]} 29. Nd2 {[%emt 0:02:18]} Ree8 {[%emt 0:01:47]} 30. f3 {[%emt 0:02:08]} Bd6 {[%emt 0:00:28]} 31. Nf1 Nf8 {[%emt 0:02:56]} 32. Nxc7 {[%emt 0:00:51]} Bxc7 {[%emt 0:00:06]} 33. Bxc5 {[%emt 0:00:16]} Ne6 {[%emt 0:00:40]} 34. Bf2 {[%emt 0:01:12]} Ng5 {[%emt 0:01:28]} 35. Kg2 {[%emt 0:00:26]} Be2 {[%emt 0:00:07]} 36. Rd3 {[%emt 0:00:54]} Bxd3 {[%emt 0:01:06]} 37. Bxd3 {[%emt 0:00:02]} Red8 38. Be2 {[%emt 0:01:30]} Ne6 {[%emt 0:00:52]} 39. Ne3 {[%emt 0:00:47]} Rd2 {[%emt 0:01:15]} 40. Nd5 {[%emt 0:00:20]} Bd8 {[%emt 0:00:21]} 41. Bxa6 {[%emt 0:01:07]} Ra8 {[%emt 0:00:05]} 42. Bb7 {[%emt 0:00:24]} Rxa5 {[%emt 0:00:09]} 43. Rxa5 {[%emt 0:00:16]} Bxa5 {[%emt 0:00:01]} 44. Kf1 {[%emt 0:00:24]} Rc2 {[%emt 0:00:17]} 0-1

[Event "44th Badalona Open 2018"]
[Site "Badalona"]
[Date "2018.08.03"]
[Round "3"]
[White "Kruijf, Caspar"]
[Black "Alcala Gonzalez, Cesar"]
[Result "1-0"]
[ECO "B17"]
[WhiteElo "1918"]
[BlackElo "1815"]
[Annotator "NA"]
[PlyCount "83"]
[EventDate "2018.08.01"]
[EventType "swiss"]
[EventCountry "ESP"]
[SourceTitle "playchess.com"]
[Source "ChessBase"]
[SourceQuality "1"]
[TimeControl "5400+30"]

1. e4 {[%emt 0:00:00]} c6 {[%emt 0:00:00]} 2. d4 {[%emt 0:00:00]} d5 {[%emt 0:00:00]} 3. Nc3 {[%emt 0:00:00]} dxe4 {[%emt 0:00:00]} 4. Nxe4 {[%emt 0:00:00]} Nd7 {[%emt 0:00:00]} 5. Bc4 {[%emt 0:00:00]} Ngf6 {[%emt 0:00:00]} 6. Nxf6+ {[%emt 0:00:10]} Nxf6 {[%emt 0:00:00]} 7. c3 {[%emt 0:00:17]} Qc7 {[%emt 0:00:00]} 8. Qb3 {[%emt 0:00:10]} e6 {[%emt 0:00:03]} 9. Nf3 {[%emt 0:00:27]} Bd6 {[%emt 0:04:40]} 10. O-O {[%emt 0:03:36]} O-O {[%emt 0:02:46]} 11. Re1 {[%emt 0:04:30]} b6 {[%emt 0:04:11]} 12. Bg5 {[%emt 0:04:56]} Nd7 {[%emt 0:13:12]} 13. Bh4 {[%emt 0:07:10]} Bb7 {[%emt 0:05:24]} 14. Bg3 {[%emt 0:06:22]} Bxg3 {[%emt 0:01:30]} 15. hxg3 {[%emt 0:00:10]} c5 {[%emt 0:00:56]} 16. Rad1 {[%emt 0:10:59]} cxd4 {[%emt 0:06:39]} 17. Nxd4 {[%emt 0:02:59]} Nc5 {[%emt 0:01:33]} 18. Qc2 {[%emt 0:01:37]} a6 {[%emt 0:11:50]} 19. Be2 {[%emt 0:19:20]} e5 {[%emt 0:06:42]} 20. Nf3 {[%emt 0:03:13]} h6 {[%emt 0:13:24]} 21. Qf5 {[%emt 0:03:47]} Rae8 {[%emt 0:04:37]} 22. b4 {[%emt 0:05:01]} Bc8 {[%emt 0:03:10]} 23. Qc2 {[%emt 0:02:49]} Nd7 {[%emt 0:01:17]} 24. c4 {[%emt 0:03:58]} Bb7 {[%emt 0:01:34]} 25. Qd2 {[%emt 0:04:44]} Rd8 {[%emt 0:08:50]} 26. Qd6 {[%emt 0:02:22]} Qc6 {[%emt 0:02:36]} 27. Qxc6 {[%emt 0:01:21]} Bxc6 {[%emt 0:00:02]} 28. Rd6 {[%emt 0:00:55]} Ba4 {[%emt 0:01:54]} 29. Bd1 {[%emt 0:00:24]} e4 {[%emt 0:05:12]} 30. Nh4 {[%emt 0:02:48]} Bxd1 {[%emt 0:01:09]} 31. Rexd1 {[%emt 0:00:09]} f5 {[%emt 0:00:02]} 32. Rxd7 {[%emt 0:00:26]} Rxd7 {[%emt 0:00:06]} 33. Rxd7 {[%emt 0:00:06]} Rf6 {[%emt 0:00:39]} 34. Rd5 {[%emt 0:00:49]} g6 {[%emt 0:00:01]} 35. c5 {[%emt 0:01:29]} bxc5 {[%emt 0:00:06]} 36. bxc5 {[%emt 0:00:25]} Kf7 {[%emt 0:00:09]} 37. Kf1 {[%emt 0:04:08]} Rc6 {[%emt 0:02:10]} 38. Ke2 {[%emt 0:02:23]} Ke6 {[%emt 0:00:36]} 39. Rd6+ {[%emt 0:00:30]} Rxd6 {[%emt 0:00:02]} 40. cxd6 {[%emt 0:00:08]} Kxd6 {[%emt 0:00:03]} 41. Nxg6 {[%emt 0:00:09]} Ke6 {[%emt 0:00:48]} 42. Ke3 {[%emt 0:00:33]} 1-0

[Event "44th Badalona Open 2018"]
[Site "Badalona"]
[Date "2018.08.03"]
[Round "3"]
[White "Carricondo Fernandez, Vicente"]
[Black "Alonso Gomez, Raul"]
[Result "0-1"]
[ECO "B30"]
[WhiteElo "1824"]
[BlackElo "1907"]
[Annotator "NA"]
[PlyCount "98"]
[EventDate "2018.08.01"]
[EventType "swiss"]
[EventCountry "ESP"]
[SourceTitle "playchess.com"]
[Source "ChessBase"]
[SourceQuality "1"]
[TimeControl "5400+30"]

1. e4 c5 {[%emt 0:00:41]} 2. Nf3 {[%emt 0:18:30]} Nc6 {[%emt 0:00:14]} 3. Nc3 {[%emt 0:02:33]} a6 {[%emt 0:03:27]} 4. b3 {[%emt 0:02:40]} g6 {[%emt 0:00:12]} 5. Bb2 {[%emt 0:00:30]} Bg7 {[%emt 0:00:30]} 6. Na4 {[%emt 0:01:52]} Nd4 {[%emt 0:00:19]} 7. Nxd4 {[%emt 0:01:50]} cxd4 {[%emt 0:00:30]} 8. Nc5 {[%emt 0:20:57]} d5 {[%emt 0:07:37]} 9. Qf3 {[%emt 0:00:30]} b6 {[%emt 0:09:47]} 10. Nd3 {[%emt 0:07:52]} e5 {[%emt 0:05:26]} 11. Nb4 {[%emt 0:05:30]} Ne7 {[%emt 0:02:21]} 12. Nxd5 {[%emt 0:00:30]} Nxd5 {[%emt 0:00:30]} 13. exd5 {[%emt 0:00:09]} Bb7 {[%emt 0:00:30]} 14. Bd3 {[%emt 0:05:39]} O-O {[%emt 0:05:18]} 15. O-O-O {[%emt 0:05:19]} f5 16. Qg3 {[%emt 0:01:15]} Bxd5 {[%emt 0:01:55]} 17. f3 {[%emt 0:01:29]} b5 {[%emt 0:04:42]} 18. h4 {[%emt 0:01:21]} b4 {[%emt 0:00:47]} 19. h5 {[%emt 0:01:58]} Qf6 {[%emt 0:00:08]} 20. hxg6 {[%emt 0:00:30]} hxg6 {[%emt 0:00:30]} 21. Qh3 {[%emt 0:09:04]} Kf7 {[%emt 0:10:06]} 22. Be4 {[%emt 0:04:12]} Rad8 {[%emt 0:09:59]} 23. Rhf1 {[%emt 0:00:17]} Rh8 {[%emt 0:01:34]} 24. Qg3 {[%emt 0:01:24]} Qh4 {[%emt 0:00:15]} 25. Bxd5+ {[%emt 0:00:30]} Rxd5 {[%emt 0:00:30]} 26. Qxh4 {[%emt 0:00:00]} Rxh4 27. Rh1 {[%emt 0:00:00]} Rxh1 {[%emt 0:02:11]} 28. Rxh1 {[%emt 0:00:55]} Rc5 29. d3 {[%emt 0:00:35]} Rc8 {[%emt 0:04:31]} 30. a3 {[%emt 0:00:30]} a5 {[%emt 0:00:14]} 31. a4 {[%emt 0:00:30]} Rh8 {[%emt 0:00:10]} 32. Rxh8 {[%emt 0:00:00]} Bxh8 {[%emt 0:00:00]} 33. Kd1 {[%emt 0:00:28]} g5 {[%emt 0:00:27]} 34. Bc1 {[%emt 0:00:34]} Bf6 {[%emt 0:00:30]} 35. Ke2 {[%emt 0:00:30]} g4 {[%emt 0:05:14]} 36. f4 {[%emt 0:02:51]} Ke6 37. fxe5 {[%emt 0:00:10]} Bxe5 {[%emt 0:01:51]} 38. Bh6 {[%emt 0:00:41]} f4 {[%emt 0:07:46]} 39. Bg5 {[%emt 0:00:29]} Bc7 {[%emt 0:01:18]} 40. Bh6 {[%emt 0:00:50]} Kf7 {[%emt 0:03:16]} 41. Bg5 {[%emt 0:00:13]} Ke6 {[%emt 0:03:18]} 42. Bh6 {[%emt 0:00:16]} Bd6 {[%emt 0:01:18]} 43. Bg5 {[%emt 0:00:18]} Bc7 {[%emt 0:00:31]} 44. Bh6 {[%emt 0:00:20]} Kf7 {[%emt 0:00:09]} 45. Bg5 {[%emt 0:00:40]} Kg6 46. Be7 Kh5 47. Bc5 Be5 48. Bb6 Kh4 49. Bxa5 Kg3 0-1